Cogmind - Beta 12 @@@ ROGUE MODE // 2023.06.11 @ 18:40:08 Player: xarkaik Result: Destroyed by S-10 Pest with Light Assault Rifle Performance ------------- Evolutions (0) 0 Regions Visited (2) 400 Robots Destroyed (27) 135 Value Destroyed (408) 408 Prototype IDs (0) 0 Alien Tech Used (0) 0 Bonus (-34) -34 TOTAL SCORE: 909 Bonus ------- Friendly Fire -34 Cogmind --------- Core Integrity 0/250 Matter 132/300 Energy 8/100 System Corruption 0% Temperature Warm (184) Movement Core (1450) Ox28 Location -10/Mines Parts ------- > --- POWER (1) -------- (None) > --- PROPULSION (2) --- (None) > --- UTILITY (2) ------ Huge Storage Unit > --- WEAPON (2) ------- Beamcaster Light Assault Rifle > --- INVENTORY (25) --- EM Pulse Gun Peak State ------------ > --- POWER ------------ (None) > --- PROPULSION ------- Light Treads Light Treads > --- UTILITY ---------- Huge Storage Unit > --- WEAPON ----------- Beamcaster Grenade Launcher > --- INVENTORY -------- EM Pulse Gun Light Assault Rifle [Rating: 9] Favorites ----------- Power Light Ion Engine Engine Light Ion Engine Propulsion Light Treads Treads Light Treads Flight Unit Flight Unit Utility Huge Storage Unit Storage Huge Storage Unit Weapon Light Assault Rifle Energy Gun EM Pulse Gun Ballistic Gun Light Assault Rifle Launcher Grenade Launcher Build | -11 -10 -10 ------- Run | Jun Mat Min Slots Evolved . | . . . Power . | . . . Propulsion . | . . . Utility . | . . . Weapon . | . . . Parts Attached 14 | 6 6 2 Power 1 | 1 . . Engine 1 | 1 . . Core . | . . . Reactor . | . . . Propulsion 6 | 2 4 . Treads 4 | 2 2 . Leg . | . . . Wheel . | . . . Hover . | . . . Flight 2 | . 2 . Utility 2 | 1 1 . Device . | . . . Storage 2 | 1 1 . Processor . | . . . Hackware . | . . . Protection . | . . . Artifact . | . . . Weapon 5 | 2 1 2 Energy Gun 2 | 1 . 1 Energy Cannon . | . . . Ballistic Gun 2 | 1 . 1 Ballistic Cannon . | . . . Launcher 1 | . 1 . Special Weapon . | . . . Impact Weapon . | . . . Slashing Weapon . | . . . Piercing Weapon . | . . . Special Melee Weapon . | . . . Unidentified Prototypes . | . . . Parts Lost 5 | . 2 3 Power 1 | . 1 . Propulsion 3 | . 1 2 Utility . | . . . Weapon 1 | . . 1 Highest Loss Streak 3 | . 2 3 To Critical Strikes . | . . . Average Slot Usage (%) 70 | . 72 67 Engine 1 | . 2 . Treads 24 | . 23 25 Flight 1 | . 2 . Storage 14 | . 14 14 Energy Gun 3 | . 2 6 Ballistic Gun 12 | . 14 8 Launcher 11 | . 11 12 Naked Turns . | . . . Heaviest Build 88 | 11 84 88 Greatest Support 40 | 40 40 40 Greatest Overweight (x) 2 | . 2 2 Average Overweight (x) 1 | . 1 2 Largest Inventory Capacity 25 | 8 25 25 Average Capacity 20 | 6 20 25 Most Carried 5 | 5 4 2 Average Carried 1 | . . 1 Final Capacity 25 | 8 25 25 Final Carried 1 | . 1 1 Class Distribution -------------------- 100% | Mutant Dominant Class ---------------- Mutant | -10/Materials Mutant | -10/Mines Resources | -11 -10 -10 ----------- Run | Jun Mat Min Matter Collected 412 | 220 166 26 Remotely . | . . . Salvage Created 648 | . 487 161 Parts 45 | . 28 17 Haulers Intercepted . | . . . Recyclers Shooed 1 | . 1 . Parts Field Recycled . | . . . Retrieved Matter . | . . . Parts Self-Destructed . | . . . Prevented . | . . . Kills | -11 -10 -10 ------- Run | Jun Mat Min Combat Hostiles Destroyed 14 | . 7 7 Guns 6 | . 4 2 AOE 8 | . 3 5 Classes Destroyed 6 | . 5 1 Worker 1 | . . 1 Builder 5 | . 4 1 Recycler 4 | . 4 . Watcher 3 | . 3 . Swarmer 8 | . 3 5 Grunt 6 | . 4 2 Best Kill Streak 6 | . 6 3 Combat Bots Only 3 | . 3 3 Max Kills in Single Turn 3 | . 2 3 Gunslinging 1 | . 1 . Exploded 3 | . 1 3 Melee . | . . . Uniques/NPCs Destroyed . | . . . Combat | -11 -10 -10 -------- Run | Jun Mat Min Damage Taken 785 | . 350 435 Core 256 | . 109 147 Absorbed by Shields . | . . . Core Remaining (%) 100 | 100 . . Volleys Fired 48 | . 33 15 Largest 2 | . 2 2 Hottest 105 | . 60 105 Shots Fired 86 | . 58 28 Gun 64 | . 42 22 Cannon . | . . . Launcher 22 | . 16 6 Special . | . . . Kinetic 45 | . 33 12 Thermal 10 | . . 10 Explosive 22 | . 16 6 Electromagnetic 9 | . 9 . Robot Hit Streak 5 | . 4 5 Robot Miss Streak 5 | . 2 5 Penetration Max . | . . . Secondary Targets 1 | . 1 . Max Gunslinging Chain 1 | . 1 . Shots Hit Robots 30 | . 23 7 Core Hits 46 | . 33 13 Critical Kills 1 | . 1 . Critical Parts Destroyed . | . . . Critical Strikes 2 | . 1 1 Burn 1 | . . 1 Destroy 1 | . 1 . Melee Attacks . | . . . Impact . | . . . Slashing . | . . . Piercing . | . . . Sneak Attacks . | . . . Combat Hostiles . | . . . Follow-up Attacks . | . . . Damage Inflicted 1321 | . 805 516 Guns 299 | . 150 149 Cannons . | . . . Explosions 1022 | . 655 367 Melee . | . . . Ramming . | . . . Kinetic 133 | . 110 23 Thermal 126 | . . 126 Explosive 1022 | . 655 367 Electromagnetic 40 | . 40 . Impact . | . . . Slashing . | . . . Piercing . | . . . Highest Corruption . | . . . Average Corruption . | . . . Corruption Purged . | . . . Corruption Blocked . | . . . Overload Shots . | . . . Overflow Damage 21 | . . 21 Projectiles . | . . . Explosions 21 | . . 21 Melee . | . . . Knockbacks . | . . . Impact . | . . . Kinetic . | . . . Secondary . | . . . Self-Inflicted Damage 107 | . 88 19 Shots 6 | . 5 1 Rammed . | . . . Targets Rammed . | . . . Kicked . | . . . Crushed . | . . . Highest Temperature 187 | . 118 187 Average Temperature 60 | . 48 76 Received Heat Transfer 258 | . 141 117 Siege Activations . | . . . Robots Corrupted . | . . . Combat Hostiles . | . . . Parts Fried . | . . . Impact Corruptions . | . . . Robots Melted . | . . . Combat Hostiles . | . . . Parts Melted 1 | . . 1 Heat Transferred 296 | . . 296 Parts Sabotaged . | . . . Parts Stolen . | . . . Parts Stripped . | . . . Power Chain Reactions . | . . . Missiles Intercepted . | . . . Alert | -11 -10 -10 ------- Run | Jun Mat Min Peak Influence 221 | . 212 221 Initial 34 | . . 34 Average 134 | . 138 173 Maximum Alert Level 1 | . 1 1 Low Security (%) 73 | 100 74 61 Level 1 26 | . 25 38 Level 2 . | . . . Level 3 . | . . . Level 4 . | . . . Level 5 . | . . . High Security . | . . . Max Security . | . . . Squads Dispatched 3 | . 3 . Investigation 1 | . 1 . Extermination . | . . . Reinforcement 2 | . 2 . Assault . | . . . Garrison . | . . . Intercept . | . . . Searches Triggered . | . . . Construction Impeded . | . . . Haulers Reinforced . | . . . Active Scanning Responses . | . . . Cargo Convoy Interrupts . | . . . Stealth | -11 -10 -10 --------- Run | Jun Mat Min Distress Signals 3 | . 3 . Communications Jammed . | . . . Distress Signals . | . . . Times Spotted 18 | . 13 5 Peak Tracking Total 6 | . 6 3 Tactical Retreats . | . . . Traps | -11 -10 -10 ------- Run | Jun Mat Min Traps Triggered 1 | . 1 . Indirectly . | . . . Trap Hack Attempts . | . . . Triggered . | . . . Disarmed . | . . . Reprogrammed . | . . . Reused . | . . . Traps Extracted . | . . . Installed . | . . . Triggered . | . . . Machines | -11 -10 -10 ---------- Run | Jun Mat Min Machines Disabled . | . . . Max in Single Turn . | . . . Machines Repaired . | . . . Machines Sabotaged . | . . . Overloaded Fab Kills . | . . . Hacking | -11 -10 -10 --------- Run | Jun Mat Min Machines Accessed 1 | . 1 . Terminals . | . . . Fabricators . | . . . Repair Stations . | . . . Recycling Units 1 | . 1 . Scanalyzers . | . . . Garrison Access . | . . . Total Hacks 3 | . 3 . Successful 3 | . 3 . Failed . | . . . Catastrophic . | . . . Database Lockouts . | . . . Manual . | . . . Terminals . | . . . Fabricators . | . . . Repair Stations . | . . . Recycling Units 3 | . 3 . Scanalyzers . | . . . Garrison Access . | . . . Terminal Hacks . | . . . Fabricator Hacks . | . . . Repair Station Hacks . | . . . Recycling Unit Hacks 3 | . 3 . Report Inventory 3 | . 3 . Scanalyzer . | . . . Garrison Access Hacks . | . . . Unauthorized Hacks . | . . . Terminals . | . . . Fabricators . | . . . Repair Stations . | . . . Recycling Units . | . . . Scanalyzers . | . . . Garrison Access . | . . . Data Cores Recovered . | . . . Used . | . . . Hacking Detections 1 | . 1 . Full Trace Events 1 | . 1 . Feedback Events . | . . . Feedback Blocked . | . . . Robot Schematics Acquired . | . . . Robots Built . | . . . Authchips . | . . . Time . | . . . Total Robot Build Rating . | . . . Part Schematics Acquired . | . . . Parts Built . | . . . Authchips . | . . . Time . | . . . Total Part Build Rating . | . . . Parts Repaired . | . . . Time . | . . . Parts Recycled . | . . . Recycled Matter . | . . . Retrieved Matter . | . . . Retrieved Components . | . . . Parts Scanalyzed . | . . . Part Schematics Acquired . | . . . Parts Damaged . | . . . Bothacking | -11 -10 -10 ------------ Run | Jun Mat Min Used RIF Installer . | . . . Robots Hacked . | . . . Non-combat . | . . . Combat . | . . . Robot Hacks Applied . | . . . Relay Couplers Released . | . . . Fabnet Peak Effective % . | . . . Robots Rewired . | . . . Allies Hacked . | . . . Hacks Repelled . | . . . Allies | -11 -10 -10 -------- Run | Jun Mat Min Total Allies 1 | . . 1 Largest Group 1 | . . 1 Highest-Rated Group 31 | . . 31 Highest-Rated Ally 31 | . . 31 Total Orders . | . . . Ally Attacks 5 | . . 5 Total Damage 62 | . . 62 Kills . | . . . Allies Corrupted . | . . . Allies Melted . | . . . Intel | -11 -10 -10 ------- Run | Jun Mat Min Robot Analysis Total . | . . . Derelict Logs Recovered . | . . . Drone Launches . | . . . Drone Recoveries . | . . . Exploration | -11 -10 -10 ------------- Run | Jun Mat Min Turns Passed 792 | 78 495 219 Spaces Moved 276 | 69 152 55 Core 39 | 39 . . Treads 218 | 30 133 55 Legs . | . . . Wheels . | . . . Hover . | . . . Flight 19 | . 19 . Fastest Speed 50 | 50 117 320 Average Speed 232 | 97 261 320 Slowest Speed 320 | 160 320 320 Overloaded Moves . | . . . Propulsion Burnouts . | . . . Robots Hopped . | . . . Cave-ins Triggered . | . . . Exploration Rate (%) 18 | 4 34 18 Regions Visited 2 Branch Regions 1 Pre-discovered Areas . | . . . Known Exits Taken . | . . . Unknown Exits Taken 2 | 1 1 . Scrap Searched . | . . . Spaces Dug . | . . . Terrain Destroyed 115 | . 61 54 Melee . | . . . Projectile . | . . . AOE 115 | . 61 54 Terrain Rammed . | . . . Walls Destroyed . | . . . Machines Disabled . | . . . Actions | -11 -10 -10 --------- Run | Jun Mat Min Total 355 | 80 202 73 Wait . | . . . Move 274 | 68 151 55 Hop . | . . . Pick Up 13 | 6 6 1 Fast Attach . | . . . Attach 12 | 6 5 1 Detach 2 | . 2 . Swap 2 | . 1 1 Drop 4 | . 4 . Fire 48 | . 33 15 Melee . | . . . Ram . | . . . Kick . | . . . Crush . | . . . Escape Stasis . | . . . Rewire . | . . . Trap . | . . . Miscellaneous . | . . . Route ------- -11/Junkyard -10/Materials -10/Mines History --------- Turn | Location | Event 27 | -11/Junkyard | Discovered new exit (range 16) 79 | -11/Junkyard | Entered Materials 301 | -10/Materials | Build established: Mutant 358 | -10/Materials | Discovered new exit (range 16) 574 | -10/Materials | Entered Mines 575 | -10/Mines | Escorted by a lone wolf Derelict 629 | -10/Mines | Core integrity fell below 50% 777 | -10/Mines | Core integrity fell below 20% 793 | -10/Mines | Destroyed by S-10 Pest with Light Assault Rifle Last Messages --------------- 00741_ The unstable cave ceiling collapses. 00741_ U-05 Engineer lays Concrete. 00742_ K-01 Serf collects debris. 00762_ U-05 Engineer lays Concrete. 00762_ K-01 Serf collects debris. 00763_ Grenade Launcher destroyed. 00764_ U-05 Engineer builds a Wall. 00767_ K-01 Serf collects debris. 00772_ Lgt. Treads destroyed. 00772_ K-01 Serf destroyed. 00772_ Lgt. Treads destroyed. 00774_ K-01 Serf collects debris. 00775_ S-10 Pest destroyed. 00777_ K-01 Serf collects debris. 00781_ Destroyed Flight Unit. 00781_ S-10 Pest suffers critical hit (Burn). 00782_ K-01 Serf collects debris. 00789_ Flight Unit melted. 00789_ S-10 Pest destroyed. 00792_ R-06 Scavenger collects Lgt. Ion Engine. Map ----- +----------------------------------------------------+ | ????????##### # ##???????????????????????????? | | ???????## #???????????????????????????? | | ???##### ##### #???????????????????????????? | | ?### # #??# ###??????????????????????????? | | ?# == #??# ##?????????????????????????? | | ?# %** #??## !%##?????????????????????????? | | ?#%=%[ ##???## ! #?????????????????????????? | | ?## =[ ##?????# #?????????????????????????? | | ??### ##??????## #?????????????????????????? | | ????####???????## ##????????????????????????? | | ?????????##??### % #????????????????????????? | | ???????### # #????????????????????????? | | ???????#= ##???????????????????????? | | ??????#! ##???????????????????????? | | ?????# ## ### ##??????????????????????? | | ????# ???# ###k ##?????????????????????? | | ????#??????# #### =%= #?????????????????????? | | ???????????## ??# ! ###?????????????????????? | | ????????????# ??# #####???????????????????? | | ???????????## ?## # ????????????????????? | | ???????????# ### # t#????????????????????? | | ???????????# # #????????????????????? | | ???????????# ### # t#????????????????????? | | ???????????# ????# # #????????????????????? | | ???????????## ## #????????????????????? | | ????????????# @ #????????????????????? | | ????????????# #????????????????????? | | ????????????## !#????????????????????? | | ?????????????# %%#????????????????????? | | ????????????# ### ????????????????????? | | ???????????# #??# % ???????????????????? | | ?????????? #???# s r ??????????????????? | | ????????? #????# r ?????????????????? | | ?????????? ??????# u ????????????????? | | ??????????#??????? ????????????????? | | ?????????????????? ## ???????????????? | | ????????????????? #??# ## ??????????????? | | ????????????????? #???? #?## ??????????????? | | ???????????????? ????? #???????????????????? | | ?????????????????? ??????#???????????????????? | | ??????????????????????????????????????????????? | | ??????????????????????????????????????????????? | | ??????????????????????????????????????????????? | | ??????????????????????????????????????????????? | | ??????????????????????????????????????????????? | | ??????????????????????????????????????????????? | | ??????????????????????????????????????????????? | | ??????????????????????????????????????????????? | | ??????????????????????????????????????????????? | | ??????????????????????????????????????????????? | +----------------------------------------------------+ Best States ------------- Heat Dissipation 25 Energy Generation 10 Energy Capacity 125 Matter Stores 300 Matter Capacity 300 Sight Range 16 Terrain Scan Density 10 Evasion (%) 50 Recoil Reduction 2 Item Schematics ----------------- None Robot Schematics ------------------ None Fabricated ------------ Nothing Alien Tech Used ----------------- None Achievements -------------- None Challenges ------------ None Game ------ Seed LightTiamatSlayer Manual? 0 Play Time 00:17:00 Cumulative 4.3 hours Start 2023.06.11 @ 01:36:19 End 2023.06.11 @ 18:40:08 Sessions 1 Manual Loads 0 Difficulty Rogue Special Mode None Game No. 6 Rogue 6 Adventurer 0 Explorer 0 Win Type - Total 0 Types 0/0/0/0/0/0/0/0/0 Lore% 1 Gallery% 9 Achievement% 8 Wizard Run 0 Options --------- ASCII 1 Keyboard 0 Movement Mouse Keybinds 0 Fullscreen 1 Font 16/Cog Map View 76x50 Tactical HUD 1 Map Filters NONE Filters NONE Steam 1 RUN: 44b8898f-30cf-476b-8e73-9e5150a4f1f3